bitfinex-derivatives/quotes_SOLF0:USTF0_20260210
["timestamp","ask_amount","ask_price","bid_price","bid_amount"]
[1770734012393,9.63009073,84.32,84.243,3.93595503]
[1770734012598,9.63009073,84.32,84.266,10.6889]
[1770734012802,9.63009073,84.32,84.243,3.93595503]
[1770734012994,4.00529406,84.339,84.243,3.93595503]
[1770734013190,4.00529406,84.319,84.243,3.93595503]
[1770734013497,10.6824,84.318,84.254,10.6903]
[1770734013697,4.00529406,84.339,84.251,3.93595503]
[1770734013895,4.00529406,84.359,84.251,3.93595503]
[1770734014204,4.00529406,84.359,84.271,3.93595503]
[1770734014205,10.6774,84.357,84.271,3.93595503]
[1770734014904,4.00529406,84.359,84.271,3.93595503]
[1770734015101,4.00529406,84.359,84.28,9.63009073]
[1770734015296,4.00529406,84.379,84.281,3.93595503]
[1770734015606,10.676,84.368,84.311,10.6831]
[1770734016100,10.677,84.36,84.281,3.93595503]
[1770734016305,4.00529406,84.379,84.281,3.93595503]
[1770734016699,10.6758,84.369,84.301,3.93595503]
[1770734016903,4.00529406,84.379,84.301,3.93595503]
[1770734017102,4.00529406,84.379,84.28,200.42]
[1770734017305,4.00529406,84.355,84.278,3.93595503]
[1770734017499,4.00529406,84.355,84.245,3.93595503]
[1770734018101,4.00529406,84.355,84.261,3.93595503]
[1770734019004,10.6817,84.323,84.265,10.689]
[1770734019299,4.00529406,84.355,84.261,3.93595503]
[1770734019605,10.6826,84.316,84.264,10.689]
[1770734020106,36.92293753,84.35,84.244,200.58]
[1770734020107,4.00529406,84.349,84.245,3.93595503]
[1770734020495,4.00529406,84.349,84.275,3.93595503]
[1770734020697,4.00529406,84.349,84.227,3.93595503]
[1770734021098,10.6848,84.298,84.242,10.6919]
[1770734021297,4.00529406,84.297,84.209,200.68]
[1770734021500,4.00529406,84.297,84.206,3.93595503]
[1770734021699,10.6855,84.293,84.228,10.6936]
[1770734022103,4.00529406,84.297,84.229,3.93595503]
[1770734022298,10.6851,84.296,84.229,3.93595503]
[1770734022904,187.4688,84.348,83.897,60.10115302]
[1770734022905,4.00529406,84.349,84.241,3.93595503]
[1770734023304,10.6822,84.319,84.246,10.6913]
[1770734023606,4.00529406,84.318,84.246,10.6913]
[1770734023803,10.6859,84.289,84.224,10.6942]
[1770734023996,4.00529406,84.296,84.225,3.93595503]
[1770734024304,4.00529406,84.317,84.211,3.93595503]
[1770734024606,4.00529406,84.317,84.23,3.93595503]
[1770734025009,10.684,84.305,84.233,3.93595503]
[1770734025205,4.00529406,84.317,84.233,3.93595503]
[1770734025507,10.6865,84.285,84.213,10.6955]
[1770734025803,10.6865,84.285,84.214,3.93595503]
[1770734026110,10.6884,84.271,84.214,3.93595503]
[1770734026296,4.00529406,84.285,84.193,3.93595503]
[1770734027808,4.00529406,84.285,84.205,3.93595503]
[1770734028005,4.00529406,84.306,84.205,3.93595503]
[1770734028407,4.00529406,84.306,84.226,14.62985503]
[1770734028603,4.00529406,84.299,84.192,3.93595503]
[1770734028798,4.00529406,84.279,84.192,3.93595503]
[1770734030198,36.92293753,84.3,84.192,3.93595503]
[1770734030509,3.96844218,84.301,84.192,3.93595503]
[1770734031010,10.6856,84.292,84.232,10.6931]
[1770734031309,3.96844218,84.301,84.221,3.71563336]
[1770734031707,3.96844218,84.301,84.191,3.71563336]
[1770734032108,3.96844218,84.299,84.191,3.71563336]
[1770734032302,36.92293753,84.3,84.191,3.71563336]
[1770734032303,3.96844218,84.297,84.191,3.71563336]
[1770734032708,10.6878,84.275,84.214,10.6954]
[1770734032908,3.96844218,84.297,84.214,3.71563336]
[1770734033310,10.6875,84.277,84.222,10.6944]
[1770734034012,3.96844218,84.297,84.214,3.71563336]
[1770734034809,10.6867,84.283,84.214,3.71563336]
[1770734035210,3.96844218,84.297,84.214,3.71563336]
[1770734035814,10.6867,84.284,84.237,10.6925]
[1770734036016,3.96844218,84.297,84.214,3.71563336]
[1770734036409,3.96844218,84.297,84.239,10.6922]
[1770734036807,3.96844218,84.319,84.24,3.71563336]
[1770734037614,10.6836,84.308,84.257,10.69]
[1770734037819,3.96844218,84.338,84.241,3.71563336]
[1770734038213,10.6818,84.323,84.268,10.6885]
[1770734038725,3.96844218,84.338,84.264,3.71563336]
[1770734038918,10.6826,84.316,84.264,3.71563336]
[1770734039314,3.96844218,84.319,84.25,9.65421456]
[1770734039515,3.96844218,84.319,84.169,166.462]
[1770734039516,3.96844218,84.298,84.223,3.71563336]
[1770734039719,3.96844218,84.298,84.203,3.71563336]
[1770734039915,3.96844218,84.298,84.211,3.71563336]
[1770734040115,3.96844218,84.298,84.213,3.71563336]
[1770734040323,3.96844218,84.298,84.215,3.71563336]
[1770734040519,3.96844218,84.318,84.254,10.6903]
[1770734040822,3.96844218,84.318,84.255,9.88687784]
[1770734041012,3.96844218,84.318,84.251,3.71563336]
[1770734041013,10.6847,84.3,84.251,3.71563336]
[1770734041211,3.96844218,84.318,84.231,3.71563336]
[1770734041514,10.6853,84.294,84.247,10.6911]
[1770734041717,3.96844218,84.327,84.251,3.71563336]
[1770734041917,3.96844218,84.319,84.252,9.88811288]
[1770734042117,3.96844218,84.319,84.231,3.71563336]
[1770734042434,3.96844218,84.319,84.233,3.71563336]
[1770734042720,3.96844218,84.319,84.23,9.65421456]
[1770734042721,3.96844218,84.319,84.251,3.71563336]
[1770734042917,3.96844218,84.319,84.253,3.71563336]
[1770734043119,3.96844218,84.319,84.254,9.88980033]
[1770734043318,3.96844218,84.319,84.255,9.88980033]
[1770734043523,3.96844218,84.319,84.256,9.88980033]
[1770734043723,130.42,84.349,84.258,3.71563336]
[1770734043724,3.96844218,84.339,84.258,3.71563336]
[1770734043911,3.96844218,84.339,84.259,9.88980033]
[1770734044513,3.96844218,84.339,84.26,3.71563336]
[1770734044720,3.96844218,84.359,84.271,3.71563336]
[1770734044917,3.96844218,84.359,84.273,3.71563336]
[1770734045113,3.96844218,84.359,84.281,3.71563336]
[1770734045423,3.96844218,84.359,84.283,3.71563336]
[1770734045620,10.6796,84.34,84.285,3.71563336]
[1770734045819,10.6796,84.34,84.286,9.89455613]
[1770734046020,3.96844218,84.359,84.286,9.89455613]
[1770734046225,10.6788,84.346,84.294,3.71563336]
[1770734046423,10.6788,84.346,84.295,13.61018949]
[1770734046624,3.96844218,84.379,84.297,3.71563336]
[1770734046827,10.6765,84.364,84.301,3.71563336]
[1770734047126,10.6765,84.364,84.303,3.71563336]
[1770734047427,10.6755,84.372,84.315,3.71563336]
[1770734047624,8.41939335,84.405,84.26,166.2819]
[1770734047625,9.65421456,84.41,84.321,3.71563336]
[1770734047825,3.96844218,84.425,84.283,166.2368]
[1770734047826,10.6705,84.412,84.353,3.71563336]
[1770734048024,3.96844218,84.425,84.353,3.71563336]
[1770734048025,3.96844218,84.425,84.354,9.89455613]
[1770734048230,3.96844218,84.409,84.313,3.71563336]
[1770734048434,10.6744,84.381,84.326,10.6812]
[1770734048727,3.96844218,84.409,84.31,9.65421456]
[1770734048728,3.96844218,84.409,84.331,3.71563336]
[1770734048918,10.674,84.384,84.331,3.71563336]
[1770734049120,3.96844218,84.409,84.333,3.71563336]
[1770734049328,3.96844218,84.409,84.335,3.71563336]
[1770734049524,3.96844218,84.409,84.337,3.71563336]
[1770734049720,10.6717,84.402,84.351,10.678]
[1770734049925,9.65421456,84.43,84.353,3.71563336]
[1770734050126,3.96844218,84.431,84.355,3.71563336]
[1770734050326,3.96844218,84.429,84.356,9.74767787]
[1770734050625,3.96844218,84.429,84.342,3.71563336]
[1770734050927,9.65421456,84.44,84.362,3.71563336]
[1770734051119,9.65421456,84.44,84.322,166.1598]
[1770734051120,3.96844218,84.449,84.371,3.71563336]
[1770734051326,3.96844218,84.449,84.38,3.71563336]
[1770734051525,3.96844218,84.449,84.382,3.71563336]
[1770734051725,3.96844218,84.449,84.384,3.71563336]
[1770734051926,3.96844218,84.449,84.385,9.74970723]
[1770734052124,9.65421456,84.46,84.394,10.6725]
[1770734052125,10.6659,84.448,84.394,10.6725]
[1770734052528,10.6659,84.448,84.395,3.71563336]
[1770734052826,10.667,84.439,84.382,10.6741]
[1770734053027,10.667,84.439,84.375,3.71563336]
[1770734053028,10.667,84.439,84.383,9.72566503]
[1770734053233,10.667,84.439,84.375,3.71563336]
[1770734053430,3.96844218,84.479,84.381,3.71563336]
[1770734053627,3.96844218,84.479,84.401,3.71563336]
[1770734053828,3.96844218,84.479,84.418,10.6695]
[1770734054128,10.6621,84.478,84.418,10.6695]
[1770734054333,3.96844218,84.479,84.403,3.71563336]
[1770734054731,3.96844218,84.479,84.38,9.62677691]
[1770734054732,3.96844218,84.479,84.404,13.41777084]
[1770734054936,3.96844218,84.479,84.405,3.71563336]
[1770734055127,10.6636,84.466,84.408,3.71563336]
[1770734055525,9.62677691,84.48,84.423,3.71563336]
[1770734055730,9.62677691,84.5,84.423,3.71563336]
[1770734055925,13.59521909,84.5,84.423,3.71563336]
[1770734056130,13.59521909,84.5,84.375,166.0556]
[1770734056131,14.62774218,84.5,84.429,3.71563336]
[1770734056331,13.59521909,84.52,84.441,3.71563336]
[1770734056532,3.96844218,84.519,84.441,3.71563336]
[1770734056928,13.59521909,84.54,84.454,3.71563336]
[1770734057331,165.5815,84.618,84.43,9.62677691]
[1770734057332,10.653,84.55,84.482,3.71563336]
[1770734057529,3.96844218,84.563,84.482,3.71563336]
[1770734057725,3.96844218,84.586,84.491,3.71563336]
[1770734057931,3.96844218,84.579,84.511,3.71563336]
[1770734058535,10.6516,84.561,84.49,9.62677691]
[1770734058734,3.96844218,84.579,84.491,3.71563336]
[1770734059037,10.6527,84.552,84.491,3.71563336]
[1770734059334,3.96844218,84.579,84.491,3.71563336]
[1770734059734,10.6527,84.553,84.491,3.71563336]
[1770734060134,3.96844218,84.559,84.471,3.72988352]
[1770734060135,10.6539,84.543,84.471,3.72988352]
[1770734060329,3.78662963,84.519,84.431,3.72988352]
[1770734061134,10.657,84.518,84.447,10.6659]
[1770734061434,3.78662963,84.517,84.411,3.94632387]
[1770734061938,10.6589,84.504,84.433,3.94632387]
[1770734062331,3.78662963,84.517,84.433,3.94632387]
[1770734062532,3.78662963,84.517,84.45,3.94632387]
[1770734062731,3.7037669,84.558,84.451,3.94632387]
[1770734062932,10.6565,84.522,84.471,3.94632387]
[1770734063538,10.6577,84.513,84.454,10.665]
[1770734064039,10.6577,84.513,84.446,3.94632387]
[1770734064238,10.6564,84.523,84.446,3.94632387]
[1770734064437,3.7037669,84.536,84.447,10.6658]
[1770734064637,3.7037669,84.536,84.448,3.94632387]
[1770734064940,10.6562,84.525,84.448,3.94632387]
[1770734065132,10.6562,84.525,84.46,3.94632387]
[1770734065533,10.6574,84.515,84.46,3.94632387]
[1770734065734,3.7037669,84.519,84.439,14.61322387]
[1770734066044,165.6931,84.561,84.411,3.94632387]
[1770734066045,10.6615,84.483,84.411,3.94632387]
[1770734066342,10.6615,84.483,84.424,10.6688]
[1770734066532,3.7037669,84.499,84.424,10.6688]
[1770734066738,10.6602,84.493,84.425,3.94632387]
[1770734066928,3.7037669,84.499,84.433,3.94632387]
[1770734067133,10.6574,84.516,84.433,3.94632387]
[1770734068034,3.7037669,84.539,84.462,3.94632387]
[1770734068540,3.7037669,84.539,84.464,3.94632387]
[1770734068736,3.7037669,84.519,84.444,3.94632387]
[1770734068937,3.7037669,84.519,84.381,166.0437]
[1770734068938,3.7037669,84.519,84.431,3.94632387]
[1770734069333,3.7037669,84.519,84.436,3.94632387]
[1770734069638,3.7037669,84.499,84.411,3.94632387]
[1770734069840,10.6623,84.477,84.411,3.94632387]
[1770734070440,10.661,84.486,84.431,10.6679]
[1770734070741,3.7037669,84.499,84.432,3.94632387]
[1770734071144,10.6611,84.486,84.432,3.94632387]
[1770734071444,3.7037669,84.499,84.412,3.94632387]
[1770734071644,10.6632,84.469,84.415,10.6699]
[1770734071837,10.6632,84.469,84.412,3.94632387]
[1770734071838,3.7037669,84.499,84.412,3.94632387]
[1770734072039,9.62677691,84.48,84.412,3.94632387]
[1770734072245,3.7037669,84.479,84.391,3.94632387]
[1770734072441,9.62677691,84.44,84.37,3.94632387]
[1770734072640,3.7037669,84.439,84.37,3.94632387]
[1770734072846,3.7037669,84.439,84.377,10.6747]
[1770734073043,3.7037669,84.439,84.37,3.94632387]
[1770734073543,9.62677691,84.42,84.348,3.94632387]
[1770734073741,3.7037669,84.439,84.348,3.94632387]
[1770734073742,10.6684,84.428,84.363,10.6765]
[1770734073945,3.7037669,84.439,84.351,3.94632387]
[1770734074444,3.7037669,84.439,84.369,10.6757]
[1770734074650,3.7037669,84.439,84.351,3.94632387]
[1770734075152,10.6699,84.416,84.351,3.94632387]
[1770734075654,10.667,84.439,84.37,3.94632387]
[1770734075842,3.7037669,84.464,84.371,3.94632387]
[1770734076044,3.7037669,84.464,84.391,3.94632387]
[1770734076349,10.6628,84.472,84.407,10.6709]
[1770734076648,10.6628,84.472,84.407,14.61722387]
[1770734077047,10.6616,84.482,84.416,10.6699]
[1770734077657,10.6599,84.496,84.422,3.94632387]
[1770734077951,3.7037669,84.509,84.431,3.94632387]
[1770734078148,10.6585,84.507,84.451,10.6654]
[1770734078354,3.7037669,84.532,84.451,3.94632387]
[1770734078752,3.7037669,84.532,84.45,9.62677691]
[1770734078753,3.7037669,84.532,84.459,3.94632387]
[1770734079259,165.6013,84.608,84.424,165.9596]
[1770734079260,9.60500758,84.55,84.461,3.94632387]
[1770734079441,3.7037669,84.534,84.463,10.6639]
[1770734079641,3.7037669,84.529,84.438,3.94632387]
[1770734080050,3.7037669,84.529,84.445,3.94632387]
[1770734080962,10.6597,84.497,84.445,3.94632387]
[1770734081151,3.7037669,84.508,84.445,3.94632387]
[1770734081760,10.6585,84.507,84.445,3.94632387]
[1770734082458,10.6597,84.497,84.445,3.94632387]
[1770734082665,3.7037669,84.529,84.435,3.94632387]
[1770734083162,3.7037669,84.529,84.466,10.6635]
[1770734083669,10.6532,84.549,84.475,3.94632387]
[1770734083967,9.60500758,84.55,84.475,3.94632387]
[1770734084263,10.6543,84.54,84.478,10.662]
[1770734084665,3.7037669,84.549,84.478,10.662]
[1770734085062,3.7037669,84.549,84.488,10.6607]
[1770734085265,3.7037669,84.549,84.475,3.94632387]
[1770734085866,3.7037669,84.549,84.468,3.94632387]
[1770734086867,10.6541,84.541,84.468,3.94632387]
[1770734087368,10.6563,84.524,84.47,10.663]
[1770734088071,3.7037669,84.529,84.447,3.94632387]
[1770734088365,3.7037669,84.509,84.424,3.94632387]
[1770734088567,3.7037669,84.509,84.439,10.6669]
[1770734088866,3.7037669,84.529,84.431,3.94632387]
[1770734089076,3.7037669,84.529,84.433,3.94632387]
[1770734089262,3.7037669,84.529,84.435,3.94632387]
[1770734089464,10.6579,84.511,84.459,10.6644]
[1770734089664,3.7037669,84.51,84.437,3.94632387]
[1770734090158,4.05658378,84.509,84.437,3.94632387]
[1770734090865,4.05658378,84.509,84.438,9.6364283]
[1770734091066,4.05658378,84.509,84.447,10.6659]
[1770734091373,4.05658378,84.509,84.437,3.94632387]
[1770734091570,4.05658378,84.509,84.438,9.65493018]
[1770734091867,4.05658378,84.509,84.437,3.94632387]
[1770734091868,4.05658378,84.509,84.446,10.666]
[1770734092065,4.05658378,84.529,84.448,3.8233875]
[1770734092266,4.05658378,84.529,84.43,9.60500758]
[1770734092267,10.6573,84.516,84.462,10.664]
[1770734092572,10.6573,84.516,84.463,9.66690311]
[1770734092768,10.6573,84.516,84.462,10.664]
[1770734092964,10.6562,84.525,84.468,10.6633]
[1770734093170,4.05658378,84.529,84.469,9.66690197]
[1770734093375,4.05658378,84.529,84.45,3.8233875]
[1770734093575,4.05658378,84.529,84.43,9.60500758]
[1770734093576,4.05658378,84.529,84.452,3.8233875]
[1770734093868,4.05658378,84.569,84.461,3.8233875]
[1770734094062,4.05658378,84.569,84.463,3.8233875]
[1770734094268,10.6533,84.547,84.486,10.661]
[1770734094464,10.6533,84.547,84.465,3.8233875]
[1770734094465,10.6533,84.547,84.487,9.67338606]
[1770734094666,10.6533,84.547,84.489,3.8233875]
[1770734094866,4.05658378,84.569,84.493,3.8233875]
[1770734095066,4.05658378,84.569,84.495,3.8233875]
[1770734095272,4.05658378,84.549,84.496,9.67338606]
[1770734095475,4.05658378,84.549,84.497,9.67338606]
[1770734095671,4.05658378,84.549,84.498,9.67567545]
[1770734095979,4.05658378,84.549,84.499,9.67567545]
[1770734096272,4.05658378,84.549,84.5,9.68010555]
[1770734096472,4.05658378,84.549,84.501,9.68010555]
[1770734096670,10.6545,84.538,84.486,10.6609]
[1770734096866,4.05658378,84.549,84.486,10.6609]
[1770734097474,9.60500758,84.57,84.497,3.8233875]
[1770734098671,4.05658378,84.569,84.497,3.8233875]
[1770734099268,4.05658378,84.569,84.454,3.8233875]
[1770734099585,4.05658378,84.529,84.454,3.8233875]
[1770734099770,10.6564,84.523,84.472,10.6627]
[1770734099966,9.60500758,84.53,84.454,3.8233875]
[1770734100280,13.66159136,84.57,84.481,3.8233875]
[1770734100677,8.43529154,84.588,84.501,3.8233875]
[1770734100875,4.05658378,84.592,84.501,3.8233875]
[1770734101077,9.60500758,84.58,84.501,3.8233875]
[1770734101272,4.05658378,84.579,84.501,3.8233875]
[1770734102071,10.6507,84.569,84.513,10.6575]
[1770734102273,4.05658378,84.579,84.501,3.8233875]
[1770734102472,9.60500758,84.59,84.462,21.328]
[1770734102473,4.05658378,84.569,84.481,3.8233875]
[1770734102682,10.6537,84.545,84.494,10.6599]
[1770734102980,4.05658378,84.569,84.481,3.8233875]
[1770734103273,4.05658378,84.569,84.518,10.657]
[1770734103483,4.05658378,84.569,84.5,3.8233875]
[1770734103875,10.6508,84.568,84.509,10.6581]
[1770734104078,4.05658378,84.569,84.5,3.8233875]
[1770734104781,10.6518,84.56,84.504,10.6587]
[1770734105074,4.05658378,84.56,84.48,9.60500758]
[1770734105376,4.05658378,84.56,84.48,3.8233875]
[1770734105677,9.60500758,84.51,84.451,3.8233875]
[1770734106073,4.05658378,84.529,84.451,3.8233875]
[1770734106378,4.05658378,84.529,84.431,3.8233875]
[1770734106573,4.05658378,84.527,84.431,3.8233875]
[1770734106972,4.05658378,84.527,84.457,10.6646]
[1770734107377,10.6592,84.501,84.447,10.6659]
[1770734107582,4.05658378,84.507,84.431,3.8233875]
[1770734107770,4.05658378,84.489,84.409,3.8233875]
[1770734108078,4.05658378,84.489,84.427,10.6685]
[1770734108269,4.05658378,84.489,84.409,3.8233875]
[1770734108675,10.661,84.487,84.427,10.6685]
[1770734108880,4.05658378,84.489,84.427,10.6685]
[1770734109682,10.6618,84.48,84.418,10.6696]
[1770734109881,4.05658378,84.489,84.401,453.83219841]
[1770734109882,4.05658378,84.489,84.411,3.8233875]
[1770734110278,14.71728378,84.489,84.426,10.6685]
[1770734110479,4.05658378,84.489,84.411,3.8233875]
[1770734110880,4.05658378,84.469,84.401,453.83219841]
[1770734111284,4.05658378,84.469,84.411,10.6704]
[1770734111486,9.60500758,84.49,84.412,3.8233875]
[1770734111674,9.60500758,84.51,84.412,3.8233875]
[1770734111877,4.05658378,84.515,84.412,3.8233875]
[1770734112275,4.05658378,84.515,84.45,3.8233875]
[1770734112683,10.6542,84.541,84.477,3.8233875]
[1770734112885,4.05658378,84.577,84.491,3.8233875]
[1770734113076,4.05658378,84.569,84.491,3.8233875]
[1770734113280,4.05658378,84.569,84.501,10.659]
[1770734113482,4.05658378,84.589,84.491,3.8233875]
[1770734113881,10.6505,84.57,84.5,10.6592]
[1770734114192,4.05658378,84.589,84.5,10.6592]
[1770734114390,4.05658378,84.589,84.501,3.8233875]
[1770734114584,4.05658378,84.589,84.503,10.6588]
[1770734114988,4.05658378,84.589,84.501,3.8233875]
[1770734115385,10.6494,84.579,84.511,3.8233875]
[1770734116389,10.6496,84.577,84.521,10.6566]
[1770734117589,8.49194413,84.608,84.53,3.8233875]
[1770734117889,9.59744697,84.61,84.53,3.8233875]
[1770734117890,4.05658378,84.607,84.53,3.8233875]
[1770734118084,4.05658378,84.588,84.52,10.6566]
[1770734118290,4.05658378,84.588,84.49,9.59744697]
[1770734118291,4.05658378,84.588,84.51,3.8233875]
[1770734118689,4.05658378,84.585,84.519,10.6568]
[1770734119388,9.59744697,84.59,84.51,3.8233875]
[1770734119389,4.05658378,84.57,84.51,3.8233875]
[1770734119881,10.6506,84.569,84.514,10.6574]
[1770734120085,10.6506,84.569,84.51,3.8233875]
[1770734120289,14.66825678,84.569,84.51,3.8233875]
[1770734120782,8.48005936,84.604,84.512,3.77876262]
[1770734120984,4.01765678,84.613,84.531,3.77876262]
[1770734121293,4.01765678,84.613,84.548,10.6531]
[1770734121888,4.01765678,84.613,84.538,3.85989974]
[1770734122088,3.79379627,84.569,84.491,3.85989974]
[1770734122799,10.6526,84.554,84.491,3.85989974]
[1770734123493,10.6513,84.564,84.491,3.85989974]
[1770734123890,10.6528,84.551,84.491,3.85989974]
[1770734124094,9.59744697,84.53,84.461,3.85989974]
[1770734124300,3.79379627,84.569,84.471,3.85989974]
[1770734124594,10.6523,84.555,84.493,10.6601]
[1770734125095,128.74,84.585,84.493,10.6601]
[1770734125096,10.6531,84.549,84.493,10.6601]
[1770734125693,10.6519,84.559,84.503,3.85989974]
[1770734125885,3.79379627,84.575,84.503,3.85989974]
[1770734126089,3.79379627,84.598,84.521,3.85989974]
[1770734126289,10.6474,84.595,84.536,10.6546]
[1770734126999,9.6042162,84.6,84.521,3.85989974]
[1770734127000,3.79379627,84.587,84.526,10.6559]
[1770734127297,3.79379627,84.61,84.521,3.85989974]
[1770734127495,3.79379627,84.61,84.52,9.6042162]
[1770734127496,10.646,84.606,84.552,10.6526]
[1770734127695,3.79379627,84.61,84.552,10.6526]
[1770734127992,10.6471,84.597,84.544,10.6536]
[1770734128298,3.79379627,84.599,84.519,3.85989974]
[1770734128895,3.79379627,84.589,84.519,3.85989974]
[1770734129296,9.6042162,84.6,84.519,3.85989974]
[1770734129491,10.6484,84.587,84.527,10.6558]
[1770734129684,3.79379627,84.599,84.519,3.85989974]
[1770734129891,3.79379627,84.599,84.521,3.85989974]
[1770734130492,3.79379627,84.599,84.546,10.6533]
[1770734130690,3.79379627,84.599,84.521,3.85989974]
[1770734130896,9.6042162,84.62,84.521,3.85989974]
[1770734131192,10.6459,84.606,84.521,3.85989974]
[1770734131395,3.79379627,84.605,84.521,3.85989974]
[1770734132297,3.79379627,84.579,84.5,3.85989974]
[1770734132498,3.79379627,84.559,84.479,3.85989974]
[1770734132899,10.6536,84.545,84.492,10.6602]
[1770734133192,3.79379627,84.559,84.479,3.85989974]
[1770734133398,3.79379627,84.559,84.481,3.85989974]
[1770734133597,3.79379627,84.559,84.494,10.66]
[1770734134298,3.79379627,84.559,84.461,3.85989974]
[1770734134499,3.79379627,84.539,84.461,3.85989974]
[1770734134801,3.79379627,84.559,84.48,3.85989974]
[1770734135698,3.79379627,84.559,84.481,3.85989974]
[1770734135895,10.6501,84.573,84.481,3.85989974]
[1770734136097,3.79379627,84.599,84.501,3.85989974]
[1770734136693,149.9289,84.618,84.501,3.85989974]
[1770734136694,3.79379627,84.579,84.501,3.85989974]
[1770734137089,9.6042162,84.54,84.451,3.85989974]
[1770734137304,3.79379627,84.519,84.451,3.85989974]
[1770734137491,3.79379627,84.519,84.431,3.85989974]
[1770734137895,9.6042162,84.5,84.431,3.85989974]
[1770734138401,3.79379627,84.499,84.431,3.85989974]
[1770734138895,10.6595,84.498,84.433,10.6676]
[1770734139100,3.79379627,84.497,84.41,9.6042162]
[1770734139302,3.79379627,84.497,84.411,3.85989974]
[1770734139597,9.6042162,84.52,84.431,3.85989974]
[1770734139896,3.79379627,84.53,84.451,3.85989974]
[1770734140090,3.79379627,84.53,84.456,10.6648]
[1770734140091,10.6571,84.518,84.456,10.6648]
[1770734140299,3.79379627,84.53,84.451,3.85989974]
[1770734140698,14.44939627,84.53,84.474,10.6625]
[1770734140903,3.79379627,84.53,84.451,3.85989974]
[1770734141202,10.6568,84.52,84.464,10.6637]
[1770734141398,3.79379627,84.53,84.464,10.6637]
[1770734141997,14.44929627,84.53,84.464,10.6637]
[1770734142492,3.79379627,84.528,84.451,3.85989974]
[1770734143198,3.79379627,84.528,84.461,10.6642]
[1770734143401,3.79379627,84.548,84.462,3.85989974]
[1770734143605,3.79379627,84.539,84.462,3.85989974]
[1770734144097,3.79379627,84.539,84.486,10.661]
[1770734144298,13.39801247,84.56,84.481,3.85989974]
[1770734144496,13.39801247,84.56,84.443,165.9226]
[1770734144497,3.79379627,84.578,84.491,3.85989974]
[1770734144698,3.79379627,84.578,84.511,3.85989974]
[1770734144898,3.79379627,84.597,84.511,3.85989974]
[1770734145294,3.79379627,84.595,84.534,10.6549]
[1770734145495,3.79379627,84.595,84.511,3.85989974]
[1770734145694,3.79379627,84.617,84.521,3.85989974]
[1770734145892,9.6042162,84.6,84.54,10.6542]
[1770734146098,3.79379627,84.611,84.521,3.85989974]
[1770734146501,3.79379627,84.599,84.521,3.85989974]
[1770734146902,3.79379627,84.574,84.491,3.85989974]
[1770734147102,3.79379627,84.559,84.471,3.85989974]
[1770734147801,3.79379627,84.547,84.486,10.661]
[1770734148197,3.79379627,84.547,84.471,3.85989974]
[1770734148395,9.6042162,84.56,84.496,3.85989974]
[1770734148596,13.39801247,84.56,84.496,3.85989974]
[1770734148797,3.79379627,84.601,84.522,3.85989974]
[1770734149408,14.61159179,84.649,84.49,9.6042162]
[1770734149409,3.79379627,84.589,84.5,3.85989974]
[1770734150001,3.79379627,84.589,84.523,3.86877195]
[1770734150402,8.46420406,84.61,84.523,3.86877195]
[1770734150403,10.646,84.606,84.544,10.6537]
[1770734150708,3.90301948,84.609,84.523,3.86877195]
[1770734150897,9.6042162,84.59,84.523,3.86877195]
[1770734151101,3.90301948,84.589,84.502,3.86877195]
[1770734151503,14.55121948,84.589,84.525,10.6561]
[1770734151703,3.90301948,84.588,84.525,10.6561]
[1770734152104,3.90301948,84.612,84.522,3.86877195]
[1770734152301,3.90301948,84.612,84.531,3.86877195]
[1770734152500,9.6042162,84.62,84.531,3.86877195]
[1770734152501,3.90301948,84.599,84.531,3.86877195]
[1770734152706,3.90301948,84.599,84.518,10.657]
[1770734152911,9.6042162,84.56,84.481,3.86877195]
[1770734153113,13.50723568,84.56,84.481,3.86877195]
[1770734153307,3.90301948,84.559,84.492,10.6602]
[1770734153809,3.90301948,84.539,84.456,3.86877195]
[1770734154312,9.6042162,84.56,84.461,3.86877195]
[1770734154501,9.6042162,84.58,84.488,3.86877195]
[1770734154701,3.90301948,84.579,84.488,3.86877195]
[1770734155101,3.90301948,84.579,84.521,10.6566]
[1770734155307,3.90301948,84.579,84.508,3.86877195]
[1770734156104,10.647,84.598,84.508,3.86877195]
[1770734156312,3.90301948,84.606,84.508,3.86877195]
[1770734156505,3.90301948,84.631,84.521,3.86877195]
[1770734157010,3.90301948,84.631,84.555,3.86877195]
[1770734157208,3.90301948,84.652,84.555,3.86877195]
[1770734157414,3.90301948,84.64,84.555,3.86877195]
[1770734157804,3.90301948,84.638,84.533,3.86877195]
[1770734158003,3.90301948,84.636,84.533,3.86877195]
[1770734158201,3.90301948,84.61,84.544,10.6536]
[1770734158816,10.647,84.598,84.535,10.6548]
[1770734159313,3.90301948,84.61,84.544,10.6537]